bitfinex-derivatives/quotes_SOLF0:USTF0_20241107
["timestamp","ask_amount","ask_price","bid_price","bid_amount"]
[1730981406709,6.59037376,186.82,186.76,2.6759]
[1730981407796,2.6754,186.8,186.76,2.6759]
[1730981408907,9.26617376,186.78,186.75,1.2852]
[1730981410300,2.6758,186.78,186.75,1.2852]
[1730981412906,2.6758,186.78,186.75,3.9613]
[1730981413905,6.59037376,186.8,186.76,2.6758]
[1730981413906,2.6754,186.8,186.76,2.6758]
[1730981417206,6.59037376,186.8,186.75,3.9612]
[1730981417512,6.59037376,186.8,186.75,1.2852]
[1730981417710,2.6758,186.78,186.75,1.2852]
[1730981418914,2.6758,186.78,186.75,3.9612]
[1730981420112,6.59037376,186.8,186.75,1.2852]
[1730981420411,2.6756,186.79,186.76,2.6759]
[1730981422111,6.59037376,186.8,186.75,1.2852]
[1730981422710,2.6758,186.78,186.73,6.59037376]
[1730981423311,2.6758,186.78,186.75,2.6761]
[1730981425407,2.6756,186.79,186.75,9.26647376]
[1730981426120,2.6756,186.79,186.75,2.6761]
[1730981428315,6.59037376,186.82,186.74,6.59037376]
[1730981428513,6.59037376,186.82,186.74,9.26657376]
[1730981428710,6.59037376,186.82,186.74,6.59037376]
[1730981428916,2.6757,186.79,186.72,2.6765]
[1730981429116,6.59037376,186.8,186.73,6.59037376]
[1730981429630,6.59037376,186.8,186.73,5.59037376]
[1730981430625,5.63037376,186.8,186.73,5.59037376]
[1730981430829,2.6758,186.78,186.74,1.6762]
[1730981432526,5.63037376,186.8,186.73,6.59037376]
[1730981432728,5.63037376,186.8,186.72,6.59037376]
[1730981433124,4.67037376,186.8,186.72,6.59037376]
[1730981433321,2.676,186.76,186.72,9.26677376]
[1730981434635,2.676,186.76,186.72,6.59037376]
[1730981434828,2.676,186.76,186.73,2.6764]
[1730981435531,2.6758,186.78,186.74,9.26657376]
[1730981435735,2.70313112,186.83,186.76,6.59037376]
[1730981435931,6.59037376,186.83,186.76,6.59037376]
[1730981436133,2.6752,186.82,186.78,9.26597376]
[1730981437426,2.6752,186.82,186.78,2.6756]
[1730981437635,2.6754,186.8,186.75,6.59037376]
[1730981437844,6.59037376,186.81,186.75,6.59037376]
[1730981438535,2.6754,186.8,186.76,2.676]
[1730981439129,6.59037376,186.81,186.75,6.59037376]
[1730981439330,2.6756,186.79,186.75,9.26647376]
[1730981440339,2.6756,186.79,186.76,2.676]
[1730981441233,2.6756,186.79,186.75,9.26647376]
[1730981442144,6.59037376,186.81,186.75,6.59037376]
[1730981443629,2.6755,186.8,186.77,6.59037376]
[1730981443829,6.59037376,186.83,186.77,6.59037376]
[1730981444335,2.6752,186.82,186.78,2.6757]
[1730981447934,9.26547376,186.83,186.78,9.26607376]
[1730981448647,2.6752,186.82,186.78,9.26607376]
[1730981450543,2.6753,186.81,186.78,9.26607376]
[1730981450741,2.6753,186.81,186.78,2.6757]
[1730981451447,2.6753,186.81,186.77,2.6758]
[1730981451848,2.6754,186.8,186.76,7.79927376]
[1730981452049,2.6754,186.8,186.76,10.47517376]
[1730981452250,2.6754,186.8,186.76,7.79927376]
[1730981453856,2.6754,186.8,186.77,2.6758]
[1730981454352,2.6754,186.8,186.76,10.47517376]
[1730981455653,2.6756,186.79,186.76,10.47517376]
[1730981457453,2.6758,186.78,186.75,1.2917]
[1730981457656,2.6758,186.78,186.73,6.59037376]
[1730981458853,9.26597376,186.79,186.75,9.26637376]
[1730981459250,2.94,186.85,186.78,6.59037376]
[1730981459554,2.6753,186.81,186.78,6.59037376]
[1730981460747,2.6751,186.83,186.8,6.59037376]
[1730981461054,6.59037376,186.87,186.82,6.59037376]
[1730981462847,2.6747,186.85,186.82,9.26547376]
[1730981463257,2.6747,186.85,186.82,6.59037376]
[1730981465455,2.6747,186.85,186.81,2.6752]
[1730981467959,6.59037376,186.86,186.81,2.6752]
[1730981468164,6.59037376,186.84,186.79,9.26587376]
[1730981469064,2.6751,186.83,186.79,9.26587376]
[1730981469857,2.6751,186.83,186.8,2.6754]
[1730981470161,6.59037376,186.84,186.8,2.6754]
[1730981470472,2.675,186.84,186.8,2.6754]
[1730981471463,2.675,186.83,186.79,9.26587376]
[1730981471769,6.59037376,186.82,186.78,2.5097]
[1730981472068,2.6754,186.8,186.75,6.59037376]
[1730981473870,2.6754,186.8,186.76,2.6759]
[1730981475262,2.6753,186.81,186.77,9.26617376]
[1730981475470,9.53037376,186.84,186.77,6.59037376]
[1730981475765,6.59037376,186.84,186.77,6.59037376]
[1730981475956,6.59037376,186.84,186.78,7.87817376]
[1730981477867,6.59037376,186.85,186.8,6.59037376]
[1730981478067,2.6749,186.84,186.8,9.26567376]
[1730981478568,6.59037376,186.85,186.79,6.59037376]
[1730981478963,2.6751,186.83,186.79,9.26587376]
[1730981479660,6.59037376,186.84,186.79,9.26587376]
[1730981479865,2.6752,186.82,186.79,9.26587376]
[1730981480267,6.59037376,186.84,186.79,9.26587376]
[1730981480577,6.59037376,186.86,186.8,6.59037376]
[1730981481664,6.59037376,186.86,186.78,7.87817376]
[1730981481866,2.675,186.83,186.79,2.6755]
[1730981483476,6.59037376,186.84,186.79,2.6755]
[1730981483674,2.6751,186.82,186.79,2.6755]
[1730981486871,2.6753,186.81,186.78,3.9634]
[1730981488383,2.6751,186.83,186.79,2.6755]
[1730981488581,9.26547376,186.83,186.79,2.6755]
[1730981489377,6.59037376,186.83,186.79,2.6755]
[1730981489579,2.6752,186.82,186.79,2.6755]
[1730981491677,2.6753,186.81,186.78,3.9634]
[1730981494789,2.6755,186.8,186.78,1.2878]
[1730981505197,9.49125349,186.88,186.79,2.6755]
[1730981505388,6.59037376,186.83,186.79,2.6755]
[1730981505990,2.6751,186.82,186.79,2.6755]
[1730981506587,2.6751,186.82,186.78,1.2878]
[1730981506588,2.6754,186.81,186.78,3.9635]
[1730981509697,5.58804563,186.8,186.61,22.14688546]
[1730981510003,6.59037376,186.75,186.69,6.59037376]
[1730981510195,6.59037376,186.75,186.7,7.38457443]
[1730981510390,6.59037376,186.75,186.71,7.38457443]
[1730981510593,6.59037376,186.75,186.73,2.6763]
[1730981510801,6.59037376,186.77,186.71,6.59037376]
[1730981511000,6.59037376,186.79,186.74,2.6761]
[1730981511195,9.26597376,186.79,186.74,2.6761]
[1730981511797,6.59037376,186.79,186.73,6.59037376]
[1730981511992,2.6757,186.78,186.75,2.6761]
[1730981512199,6.59037376,186.79,186.75,2.6761]
[1730981512790,9.26587376,186.8,186.76,2.6759]
[1730981516205,2.6755,186.8,186.77,2.6758]
[1730981516407,2.6753,186.81,186.76,6.59037376]
[1730981516903,9.26557376,186.82,186.78,2.6756]
[1730981517494,2.6753,186.81,186.78,2.6756]
[1730981519805,6.59037376,186.78,186.75,2.6761]
[1730981520506,6.59037376,186.78,186.76,2.6759]
[1730981521213,9.26607376,186.78,186.73,6.59037376]
[1730981521512,9.26607376,186.78,186.75,2.6761]
[1730981521698,9.26607376,186.78,186.73,6.59037376]
[1730981521897,9.26607376,186.78,186.74,8.72146301]
[1730981522097,9.26607376,186.78,186.74,2.6761]
[1730981522311,2.6759,186.77,186.74,2.6761]
[1730981522915,2.6759,186.77,186.71,6.59037376]
[1730981523210,2.676,186.76,186.72,7.38390376]
[1730981523401,2.676,186.76,186.73,7.38390376]
[1730981523601,2.676,186.76,186.71,6.59037376]
[1730981523814,2.676,186.76,186.72,7.38369699]
[1730981524003,2.676,186.76,186.73,6.04510805]
[1730981524204,2.676,186.76,186.73,2.6763]
[1730981526620,2.92,186.84,186.71,6.59037376]
[1730981526906,2.92,186.84,186.7,2.92]
[1730981526907,6.59037376,186.79,186.73,6.59037376]
[1730981527710,2.6759,186.77,186.74,2.6762]
[1730981528308,2.6757,186.78,186.75,2.6761]
[1730981529416,2.6757,186.79,186.75,2.6761]
[1730981529616,6.59037376,186.79,186.75,2.6761]
[1730981530816,2.6757,186.78,186.75,2.6761]
[1730981532215,6.59037376,186.79,186.74,6.59037376]
[1730981532415,2.6755,186.8,186.77,2.6758]
[1730981536214,6.59037376,186.81,186.75,6.59037376]
[1730981537210,6.59037376,186.8,186.76,2.6759]
[1730981537416,6.59037376,186.8,186.74,1.2583]
[1730981538027,2.92,186.83,186.77,2.6757]
[1730981538216,9.51037376,186.83,186.77,2.6757]
[1730981538417,6.59037376,186.83,186.76,6.59037376]
[1730981538617,2.6751,186.82,186.78,2.6756]
[1730981538827,6.59037376,186.83,186.76,6.59037376]
[1730981539212,9.26537376,186.83,186.79,2.6755]
[1730981539819,9.26537376,186.83,186.8,2.6753]
[1730981542720,2.6753,186.82,186.78,2.6756]
[1730981545929,9.26567376,186.82,186.78,2.6756]
[1730981546129,2.6753,186.81,186.77,9.26617376]
[1730981546624,6.59037376,186.82,186.75,7.81847376]
[1730981546932,6.59037376,186.8,186.76,6.04525781]
[1730981547123,6.59037376,186.8,186.75,1.2281]
[1730981547328,9.26577376,186.8,186.76,8.72136853]
[1730981547628,6.59037376,186.8,186.75,1.2281]
[1730981547828,9.26557376,186.82,186.78,2.6756]
[1730981549031,6.59037376,186.84,186.77,6.59037376]
[1730981549227,9.26527376,186.84,186.8,2.6754]
[1730981549821,6.59037376,186.84,186.8,2.6754]
[1730981551931,6.59037376,186.84,186.82,2.6751]
[1730981552527,6.55125349,186.87,186.83,9.26537376]
[1730981553047,9.26477376,186.88,186.83,9.26537376]
[1730981553734,2.6742,186.89,186.84,9.26517376]
[1730981554731,2.6743,186.88,186.84,9.26517376]
[1730981556234,2.6741,186.89,186.84,6.59037376]
[1730981557733,2.6741,186.89,186.85,2.6746]
[1730981559039,6.59037376,186.9,186.85,2.6746]
[1730981559238,2.6743,186.88,186.85,2.6746]
[1730981561033,9.26447376,186.9,186.86,2.6745]
[1730981561538,2.6741,186.9,186.86,2.6745]
[1730981561740,2.6739,186.91,186.87,2.6743]
[1730981562741,2.674,186.9,186.87,2.6743]
[1730981563340,6.6056572,186.96,186.9,2.674]
[1730981563539,6.59037376,186.96,186.9,6.59037376]
[1730981564053,9.26347376,186.96,186.92,2.6736]
[1730981564234,6.59037376,186.97,186.9,6.59037376]
[1730981564437,6.59037376,186.97,186.92,6.59037376]
[1730981565336,9.26337376,186.97,186.93,2.6734]
[1730981565537,6.59037376,186.99,186.92,6.59037376]
[1730981565741,5.55802274,187.02,186.94,2.6733]
[1730981565742,2.6728,186.98,186.94,2.6733]
[1730981566738,2.6732,186.96,186.89,1.214]
[1730981566940,6.59037376,186.95,186.9,2.9]
[1730981567744,6.59037376,186.95,186.9,5.5739]
[1730981568845,2.6734,186.94,186.89,3.8881]
[1730981569055,6.59037376,186.93,186.89,3.8881]
[1730981570250,6.59037376,186.93,186.9,2.674]
[1730981570946,6.59037376,186.93,186.89,1.214]
[1730981572144,6.59037376,186.93,186.89,3.888]
[1730981572841,6.59037376,186.93,186.9,2.6739]
[1730981573040,6.59037376,186.9,186.79,6.00727173]
[1730981573241,9.26447376,186.89,186.83,6.59037376]
[1730981573449,6.59037376,186.91,186.86,2.6745]
[1730981574742,2.674,186.9,186.86,2.6745]
[1730981578359,2.6735,186.94,186.89,2.6741]
[1730981578559,6.59037376,186.95,186.9,6.59037376]
[1730981579651,2.6735,186.93,186.9,6.59037376]
[1730981583061,2.9,186.99,186.91,2.6738]
[1730981583253,6.59037376,186.96,186.91,2.6738]
[1730981584651,6.59037376,186.96,186.9,9.26437376]
[1730981584652,2.6734,186.94,186.9,9.26437376]
[1730981589365,6.59022664,187.0,186.91,6.59037376]
[1730981589560,6.59022664,187.0,186.93,9.26377376]
[1730981589764,6.59037376,186.99,186.93,9.26377376]
[1730981589958,2.6729,186.98,186.93,9.26377376]
[1730981590959,2.673,186.97,186.93,9.26377376]
[1730981594668,9.26337376,186.97,186.93,2.6734]
[1730981596267,2.673,186.97,186.93,9.26377376]
[1730981597169,2.673,186.97,186.93,2.6734]
[1730981597770,9.26337376,186.97,186.93,2.6734]
[1730981597971,6.59037376,186.97,186.91,2.9]
[1730981598271,2.6734,186.94,186.91,2.6738]
[1730981598464,2.6734,186.94,186.9,7.90917376]
[1730981599872,2.6734,186.94,186.9,10.58307376]
[1730981601467,2.6734,186.94,186.91,2.6738]
[1730981602772,9.26367376,186.95,186.91,2.6738]
[1730981603166,9.26367376,186.95,186.9,7.90917376]
[1730981603362,9.26367376,186.95,186.91,2.6738]
[1730981603975,2.6732,186.96,186.92,2.6736]
[1730981606083,2.69038715,187.0,186.91,6.59037376]
[1730981606281,2.673,186.97,186.93,9.26387376]
[1730981607179,6.59037376,186.99,186.94,2.6734]
[1730981607373,6.59037376,186.99,186.93,6.59037376]
[1730981607877,9.26307376,186.99,186.95,2.6732]
[1730981608177,9.26307376,186.99,186.95,9.26357376]
[1730981608384,2.6727,186.99,186.95,9.26357376]
[1730981609275,2.6726,187.0,186.96,2.673]
[1730981609476,2.6726,187.0,186.95,6.59037376]
[1730981609981,2.6726,187.0,186.96,2.673]
[1730981610377,6.59037376,187.01,186.94,9.49037376]
[1730981610578,9.26317376,186.99,186.94,2.9]
[1730981610981,9.26317376,186.99,186.95,2.6732]
[1730981612981,2.673,186.97,186.94,2.9]
[1730981613578,2.6732,186.96,186.94,2.9]
[1730981613778,6.59037376,186.97,186.9,1.3188]
[1730981613988,6.59037376,186.95,186.9,1.3188]
[1730981614189,8.2438,187.05,186.9,3.9928]
[1730981614190,2.6735,186.94,186.9,3.9928]
[1730981614387,9.26387376,186.94,186.9,3.9928]
[1730981615092,2.6735,186.94,186.9,3.9928]
[1730981615586,2.6734,186.95,186.91,2.6738]
[1730981616083,2.6731,186.96,186.92,2.6737]
[1730981617184,2.6731,186.96,186.92,2.6736]
[1730981618885,2.6731,186.96,186.93,2.6735]
[1730981619289,6.59037376,186.98,186.93,2.6735]
[1730981619290,9.26327376,186.98,186.93,2.6735]
[1730981619484,6.59037376,187.0,186.94,2.6733]
[1730981619690,6.59037376,187.0,186.93,9.49037376]
[1730981621091,6.59037376,186.98,186.93,9.49037376]
[1730981621490,2.673,186.97,186.93,9.49037376]
[1730981621793,6.59037376,187.0,186.94,6.59037376]
[1730981621999,6.59037376,187.0,186.97,2.6729]
[1730981623997,9.26287376,187.0,186.97,2.6729]
[1730981626092,2.6725,187.0,186.97,2.6729]
[1730981627995,2.6721,187.03,186.99,2.6726]
[1730981628402,6.59037376,187.05,186.98,6.59037376]
[1730981628600,2.6721,187.03,187.0,2.6725]
[1730981628802,2.6721,187.03,186.98,9.49037376]
[1730981629907,2.6721,187.03,186.99,2.6726]
[1730981630402,2.6721,187.03,187.0,2.6725]
[1730981631307,9.26237376,187.05,187.0,2.6725]
[1730981631805,2.69159936,187.18,187.06,2.6716]
[1730981632008,6.59037376,187.13,187.06,9.26197376]
[1730981632204,6.59037376,187.13,187.06,6.59037376]
[1730981632407,2.6711,187.11,187.07,2.6715]
[1730981633505,2.6711,187.11,187.07,9.26187376]
[1730981633800,2.6709,187.12,187.07,9.26187376]
[1730981633999,6.59037376,187.11,187.06,2.9]
[1730981634211,6.59037376,187.11,187.06,5.5717]
[1730981634709,6.59037376,187.14,187.08,2.6713]
[1730981634912,6.59037376,187.14,187.09,6.59037376]
[1730981635404,2.6707,187.13,187.09,9.26157376]
[1730981637006,2.6707,187.13,187.09,2.6712]
[1730981639017,2.6706,187.14,187.1,6.59037376]
[1730981639202,9.26097376,187.14,187.09,2.6712]
[1730981639511,9.26097376,187.14,187.09,9.26157376]
[1730981639907,2.6706,187.14,187.1,6.59037376]
[1730981640309,2.6706,187.14,187.1,9.26147376]
[1730981640709,41.78986781,187.19,187.1,6.59037376]
[1730981640915,2.6699,187.19,187.15,6.59037376]
[1730981641109,2.6699,187.19,187.16,2.88]
[1730981641620,2.6697,187.2,187.15,6.59037376]
[1730981641913,2.6697,187.2,187.17,2.88]
[1730981642314,2.6698,187.2,187.18,2.88]
[1730981642521,2.6698,187.2,187.17,2.88]
[1730981642522,6.59037376,187.2,187.17,2.88]
[1730981642715,6.59037376,187.2,187.13,6.59037376]
[1730981642920,2.6699,187.19,187.14,2.88]
[1730981643120,2.88,187.28,187.15,6.59037376]
[1730981643319,6.59037376,187.21,187.15,6.59037376]
[1730981643518,2.6701,187.18,187.13,2.88]
[1730981643723,6.59037376,187.19,187.13,9.47037376]
[1730981644117,2.6699,187.19,187.15,6.59037376]
[1730981644322,2.6699,187.19,187.14,2.6705]
[1730981644323,2.60816967,187.3,187.18,6.59037376]
[1730981644525,0.6852,187.31,187.18,6.59037376]
[1730981644526,6.59037376,187.25,187.18,9.47037376]
[1730981644711,2.6695,187.22,187.18,12.14027376]
[1730981645112,2.6695,187.22,187.18,9.47037376]
[1730981645425,2.6695,187.22,187.18,2.88]
[1730981646922,9.25997376,187.21,187.17,2.88]
[1730981647517,2.6699,187.19,187.16,2.88]
[1730981647724,6.59037376,187.2,187.14,13.07937376]
[1730981647922,6.59037376,187.2,187.14,6.6986]
[1730981648322,2.67,187.18,187.14,6.6986]
[1730981649031,2.88,187.26,187.14,3.8186]
[1730981649032,6.59037376,187.17,187.14,3.8186]
[1730981649330,2.88,187.26,187.14,10.40897376]
[1730981649517,6.59037376,187.22,187.15,6.59037376]
[1730981649724,6.58755651,187.3,187.17,6.59037376]
[1730981649918,2.6693,187.23,187.18,5.5499]
[1730981650128,6.59037376,187.24,187.18,5.5499]
[1730981650430,2.88,187.3,187.18,5.5499]
[1730981650431,6.59037376,187.22,187.18,5.5499]
[1730981650726,9.25987376,187.22,187.18,2.88]
[1730981651836,2.6696,187.21,187.18,2.88]
[1730981652924,6.59037376,187.22,187.18,2.88]
[1730981653125,9.26017376,187.2,187.18,2.88]
[1730981653730,6.59037376,187.2,187.14,2.5641]
[1730981653932,2.6702,187.17,187.14,2.5641]
[1730981655924,2.6699,187.19,187.14,5.2345]
[1730981656426,2.6699,187.19,187.15,6.59037376]
[1730981657223,2.6699,187.19,187.15,9.26067376]
[1730981659831,2.6697,187.2,187.17,6.59037376]
[1730981660031,6.59037376,187.23,187.17,6.59037376]
[1730981660225,6.59037376,187.21,187.15,2.6703]
[1730981660927,2.88,187.26,187.15,2.6703]
[1730981660928,2.6699,187.19,187.15,2.6703]
[1730981661127,2.6699,187.19,187.14,9.15447376]
[1730981661128,5.3367,187.3,187.18,6.59037376]
[1730981661331,6.59037376,187.24,187.17,2.6701]
[1730981661528,6.59037376,187.24,187.17,9.26047376]
[1730981661529,2.6696,187.21,187.17,9.26047376]
[1730981661935,6.59037376,187.22,187.16,2.6702]
[1730981662329,5.3367,187.3,187.16,2.6702]
[1730981662538,2.88,187.29,187.19,6.59037376]
[1730981662739,6.59037376,187.26,187.19,9.47037376]
[1730981663540,2.6692,187.24,187.21,2.6695]
[1730981664133,2.6692,187.24,187.21,6.59037376]
[1730981664535,2.6695,187.22,187.19,2.88]
[1730981665244,2.6691,187.24,187.2,6.59037376]
[1730981665539,2.6691,187.24,187.21,2.6695]
[1730981667438,6.59037376,187.26,187.2,6.59037376]
[1730981667739,2.6694,187.22,187.2,6.59037376]
[1730981668138,2.6694,187.23,187.2,6.59037376]
[1730981669346,2.6693,187.23,187.2,9.26007376]
[1730981669638,9.29704823,187.35,187.2,9.26007376]
[1730981669839,6.59037376,187.26,187.2,9.26007376]
[1730981670634,2.6694,187.23,187.2,9.26007376]
[1730981671139,2.6694,187.22,187.19,5.5498]
[1730981671337,6.59037376,187.24,187.19,9.47037376]
[1730981671538,6.59037376,187.24,187.19,2.88]
[1730981671745,2.6693,187.23,187.2,6.59037376]
[1730981672242,6.59037376,187.24,187.2,6.59037376]
[1730981672836,2.6693,187.23,187.2,6.59037376]
[1730981673034,2.6693,187.23,187.2,9.25997376]
[1730981674338,2.6693,187.23,187.14,3.8541]
[1730981674339,6.59037376,187.25,187.14,3.8541]
[1730981674543,6.56045559,187.35,187.18,16.06]
[1730981674734,6.56045559,187.35,187.32,6.59037376]
[1730981674941,6.56045559,187.35,187.33,2.88]
[1730981675241,6.56045559,187.35,187.33,9.47037376]
[1730981675436,6.56045559,187.35,187.34,2.6677]
[1730981676041,2.6667,187.41,187.35,2.6675]
[1730981676248,0.683,187.48,187.38,6.59037376]
[1730981676445,6.59037376,187.44,187.39,2.88]
[1730981676846,2.6668,187.41,187.39,2.88]
[1730981678439,2.6668,187.41,187.34,10.25060804]
[1730981678641,2.6668,187.41,187.35,2.88]
[1730981678841,2.6668,187.41,187.36,2.6674]
[1730981679544,2.6668,187.41,187.32,1.2799]
[1730981679545,10.25060804,187.44,187.32,11.53050804]
[1730981679751,2.6671,187.39,187.33,5.5478]
[1730981680046,2.6671,187.39,187.32,11.53050804]
[1730981680047,10.25060804,187.43,187.34,2.88]
[1730981680748,2.6673,187.38,187.34,2.88]
[1730981681149,1.2257,187.46,187.34,2.88]
[1730981681445,1.2257,187.46,187.34,13.13060804]
[1730981681446,2.6669,187.4,187.34,13.13060804]
[1730981681848,2.6669,187.4,187.35,2.6674]
[1730981682048,2.6665,187.43,187.35,2.6674]
[1730981682248,11.47630804,187.46,187.35,2.6674]
[1730981682648,2.667,187.4,187.35,2.6674]
[1730981684357,11.47630804,187.46,187.36,5.5473]
[1730981684358,2.6667,187.41,187.36,5.5473]
[1730981686458,11.47630804,187.46,187.36,2.88]
[1730981687853,2.6669,187.4,187.36,2.88]
[1730981689259,2.667,187.39,187.36,2.88]
[1730981689658,11.47630804,187.46,187.36,5.5474]
[1730981689958,11.47630804,187.46,187.36,2.88]
[1730981690564,2.667,187.39,187.36,2.88]
[1730981692958,2.667,187.39,187.35,2.6675]
[1730981693161,2.667,187.39,187.35,5.5475]
[1730981693463,2.667,187.39,187.35,2.88]
[1730981694957,2.667,187.39,187.35,5.5475]
[1730981695859,2.6671,187.39,187.35,5.5475]
[1730981696364,11.47630804,187.46,187.34,10.25060804]
[1730981696558,2.6673,187.37,187.34,10.25060804]
[1730981697263,2.6673,187.37,187.36,6.56161387]
[1730981697663,6.56161387,187.42,187.33,5.5477]
[1730981697964,6.56161387,187.42,187.36,6.56161387]
[1730981698466,2.6673,187.38,187.36,6.56161387]
[1730981698855,6.56161387,187.42,187.36,6.56161387]
[1730981699258,6.56161387,187.44,187.38,6.56161387]
[1730981699864,2.667,187.39,187.38,6.56161387]
[1730981701566,6.56161387,187.45,187.34,2.86]
[1730981701762,6.56161387,187.45,187.31,2.4503]
[1730981701763,6.56161387,187.43,187.38,6.56161387]
[1730981702164,2.667,187.39,187.38,6.56161387]
[1730981703059,6.56161387,187.43,187.34,2.86]
[1730981703359,2.6673,187.37,187.34,5.5276]
[1730981703965,6.56161387,187.43,187.34,2.86]
[1730981704161,2.6672,187.38,187.37,6.56161387]
[1730981706670,6.56161387,187.42,187.36,6.56161387]
[1730981707058,9.4178,187.46,187.36,6.56161387]
[1730981707268,6.56161387,187.43,187.36,6.56161387]
[1730981707764,2.6673,187.37,187.36,6.56161387]
[1730981711268,2.6673,187.37,187.34,2.86]
[1730981711463,2.6673,187.37,187.36,6.56161387]
[1730981720472,6.56161387,187.42,187.35,6.56161387]
[1730981720674,6.29509439,187.45,187.22,65.33242633]
[1730981720675,6.56161387,187.36,187.22,21.55362633]
[1730981720979,6.56161387,187.35,187.28,6.56161387]
[1730981722078,2.6683,187.31,187.28,6.56161387]
[1730981723179,6.56161387,187.35,187.26,2.6688]
[1730981723380,2.6683,187.3,187.29,6.56161387]
[1730981723981,2.6685,187.29,187.28,6.56161387]
[1730981725079,2.6685,187.29,187.24,4.0777]
[1730981725080,2.6685,187.29,187.24,2.86]
[1730981725376,2.6685,187.28,187.26,6.56161387]
[1730981725977,6.56161387,187.33,187.26,6.56161387]
[1730981726282,2.6684,187.29,187.26,6.56161387]
[1730981726781,2.6684,187.29,187.28,6.56161387]
[1730981726981,2.6681,187.32,187.28,6.56161387]
[1730981727179,2.6681,187.32,187.3,6.56161387]
[1730981727879,2.6681,187.32,187.28,2.6684]
[1730981728275,2.6681,187.32,187.3,6.56161387]
[1730981729077,2.6681,187.31,187.28,2.6684]
[1730981729275,6.56161387,187.36,187.29,6.56161387]
[1730981729683,2.6679,187.33,187.29,9.23001387]
[1730981730778,2.668,187.32,187.29,6.56161387]
[1730981731481,6.56161387,187.36,187.29,6.56161387]
[1730981731682,2.6681,187.31,187.29,6.56161387]
[1730981735779,2.6683,187.3,187.29,6.56161387]
[1730981736279,2.6683,187.3,187.26,2.6688]
[1730981736480,2.6683,187.3,187.28,6.56161387]
[1730981737775,2.6684,187.29,187.28,6.56161387]
[1730981738482,2.6684,187.29,187.26,6.56161387]
[1730981738988,2.6684,187.29,187.26,9.23041387]
[1730981739786,2.6683,187.3,187.28,6.56161387]
[1730981741384,6.56161387,187.34,187.08,16.01]
[1730981741695,2.86,187.38,187.26,6.56161387]
[1730981741696,6.56161387,187.33,187.26,6.56161387]
[1730981741986,6.56161387,187.33,187.28,6.56161387]
[1730981743391,2.86,187.35,187.28,6.56161387]
[1730981743392,2.6682,187.31,187.28,6.56161387]
[1730981744085,2.6683,187.3,187.28,6.56161387]
[1730981746984,6.56161387,187.34,187.28,6.56161387]
[1730981747190,6.56161387,187.33,187.27,6.56161387]
[1730981747492,2.6681,187.32,187.27,6.56161387]
[1730981747796,6.56161387,187.33,187.27,6.56161387]
[1730981747990,2.6684,187.29,187.27,6.56161387]
[1730981748197,6.56161387,187.33,187.27,6.56161387]
[1730981748697,6.56161387,187.33,187.27,9.23031387]
[1730981749897,2.6683,187.3,187.27,9.23031387]
[1730981752999,2.6683,187.3,187.27,6.56161387]
[1730981753193,2.6683,187.3,187.26,2.6687]
[1730981753394,2.6683,187.3,187.26,9.23031387]
[1730981754199,6.56161387,187.33,187.26,9.23031387]
[1730981754595,2.86,187.35,187.26,9.23031387]
[1730981754906,2.6685,187.29,187.26,6.56161387]
[1730981755601,6.56161387,187.32,187.26,6.56161387]
[1730981756201,2.6685,187.29,187.26,6.56161387]
[1730981756398,6.56161387,187.32,187.26,6.56161387]
[1730981756705,6.56161387,187.31,187.25,6.56161387]
[1730981756894,2.6686,187.28,187.25,6.56161387]
[1730981757804,2.6686,187.28,187.25,9.23061387]
[1730981758796,2.6686,187.28,187.25,2.669]
[1730981758998,2.6686,187.28,187.25,9.23061387]
[1730981759399,2.6686,187.28,187.25,6.56161387]
[1730981760306,2.6686,187.28,187.25,9.23051387]
[1730981760506,6.56161387,187.31,187.25,2.6689]
[1730981760802,6.56161387,187.31,187.24,6.56161387]
[1730981761204,2.6686,187.28,187.24,6.56161387]
[1730981761897,2.6687,187.27,187.24,6.56161387]
[1730981762096,6.56161387,187.31,187.24,6.56161387]
[1730981762298,6.56161387,187.31,187.2,4.1394]
[1730981762299,5.3879,187.34,187.26,6.56161387]
[1730981762497,2.6682,187.31,187.26,6.56161387]